[Event "55th Rubinstein Memorial-A 2019"]
[Site "Polanica-Zdroj"]
[Date "2019.08.25"]
[Round "9.4"]
[White "Lewtak, Damian"]
[Black "Marszalek, Maciej"]
[Result "1/2-1/2"]
[ECO "C68"]
[WhiteElo "2354"]
[BlackElo "2295"]
[Annotator "NA"]
[PlyCount "138"]
[EventDate "2019.08.17"]
[EventType "swiss"]
[EventCountry "POL"]
[SourceTitle "playchess.com"]
[Source "ChessBase"]
[SourceQuality "1"]
[TimeControl "40/5400+30:1800+30"]

1. e4 {[%emt 0:00:00]} e5 {[%emt 0:00:00]} 2. Nf3 {[%emt 0:00:00]} Nc6 {[%emt 0:00:05]} 3. Bb5 {[%emt 0:00:41]} a6 {[%emt 0:00:14]} 4. Bxc6 {[%emt 0:00:17]} dxc6 {[%emt 0:00:12]} 5. O-O {[%emt 0:00:27]} f6 {[%emt 0:00:22]} 6. d4 {[%emt 0:00:14]} Bg4 {[%emt 0:00:48]} 7. dxe5 {[%emt 0:02:37]} Qxd1 {[%emt 0:00:28]} 8. Rxd1 {[%emt 0:00:05]} fxe5 {[%emt 0:00:30]} 9. Nbd2 {[%emt 0:06:14]} Rd8 {[%emt 0:04:29]} 10. Re1 {[%emt 0:00:13]} Bd6 {[%emt 0:00:31]} 11. Nc4 {[%emt 0:04:45]} Bxf3 {[%emt 0:09:08]} 12. gxf3 {[%emt 0:00:09]} Ne7 {[%emt 0:01:59]} 13. f4 {[%emt 0:05:13]} exf4 {[%emt 0:04:00]} 14. Nxd6+ {[%emt 0:00:39]} cxd6 {[%emt 0:03:40]} 15. Bxf4 {[%emt 0:00:16]} Ng6 {[%emt 0:01:00]} 16. Bg3 {[%emt 0:01:46]} h5 {[%emt 0:01:35]} 17. Rad1 {[%emt 0:02:12]} Ke7 {[%emt 0:00:34]} 18. h4 {[%emt 0:07:48]} Rhf8 {[%emt 0:03:50]} 19. Re2 {[%emt 0:00:57]} Nf4 {[%emt 0:07:23]} 20. Re3 {[%emt 0:05:01]} Ke6 {[%emt 0:12:01]} 21. f3 {[%emt 0:01:40]} Rd7 {[%emt 0:01:50]} 22. Kf2 {[%emt 0:06:29]} Nh3+ {[%emt 0:05:51]} 23. Kf1 {[%emt 0:04:08]} Nf4 {[%emt 0:00:31]} 24. c4 {[%emt 0:03:35]} Rf6 {[%emt 0:10:04]} 25. e5 {[%emt 0:10:18]} dxe5 {[%emt 0:01:49]} 26. Rxe5+ {[%emt 0:00:46]} Kxe5 {[%emt 0:00:01]} 27. Rxd7 {[%emt 0:00:07]} b5 {[%emt 0:02:44]} 28. Re7+ {[%emt 0:11:47]} Kf5 {[%emt 0:00:50]} 29. Rxg7 {[%emt 0:04:30]} Ne6 {[%emt 0:02:43]} 30. Ra7 {[%emt 0:01:08]} Kg6 {[%emt 0:05:29]} 31. Kg2 {[%emt 0:02:47]} Nf4+ {[%emt 0:00:42]} 32. Bxf4 {[%emt 0:06:36]} Rxf4 {[%emt 0:00:02]} 33. b3 {[%emt 0:01:09]} bxc4 {[%emt 0:03:48]} 34. Rxa6 {[%emt 0:00:18]} cxb3 {[%emt 0:00:34]} 35. Rxc6+ {[%emt 0:00:21]} Kf5 {[%emt 0:01:24]} 36. axb3 {[%emt 0:00:20]} Rb4 {[%emt 0:00:09]} 37. Kg3 {[%emt 0:06:10]} Rxb3 {[%emt 0:01:08]} 38. Rh6 {[%emt 0:00:09]} Rb4 {[%emt 0:00:59]} 39. Rxh5+ {[%emt 0:00:07]} Kf6 {[%emt 0:00:23]} 40. Rh8 {[%emt 0:00:00]} Kg7 {[%emt 0:00:00]} 41. Re8 {[%emt 0:00:17]} Kg6 {[%emt 0:00:53]} 42. Re4 {[%emt 0:02:48]} Rb1 {[%emt 0:00:27]} 43. Kf4 {[%emt 0:00:37]} Rb6 {[%emt 0:03:40]} 44. Rd4 {[%emt 0:01:46]} Rb5 {[%emt 0:00:57]} 45. Kg4 {[%emt 0:00:57]} Rb1 {[%emt 0:01:08]} 46. Rd6+ {[%emt 0:00:23]} Kg7 {[%emt 0:00:03]} 47. f4 {[%emt 0:00:42]} Rg1+ {[%emt 0:00:07]} 48. Kf5 {[%emt 0:00:43]} Rh1 {[%emt 0:00:04]} 49. Rd7+ {[%emt 0:02:33]} Kh6 {[%emt 0:00:57]} 50. Ke6 {[%emt 0:02:26]} Rxh4 {[%emt 0:01:34]} 51. f5 {[%emt 0:02:59]} Re4+ {[%emt 0:03:34]} 52. Kf7 {[%emt 0:01:44]} Ra4 {[%emt 0:00:06]} 53. Re7 {[%emt 0:08:05]} Ra1 {[%emt 0:01:45]} 54. f6 {[%emt 0:07:19]} Ra8 {[%emt 0:01:46]} 55. Re8 {[%emt 0:00:26]} Ra7+ {[%emt 0:00:07]} 56. Ke6 {[%emt 0:02:31]} Ra6+ {[%emt 0:00:53]} 57. Kf5 {[%emt 0:00:22]} Ra5+ {[%emt 0:00:36]} 58. Re5 {[%emt 0:00:34]} Ra6 {[%emt 0:00:38]} 59. Rd5 {[%emt 0:00:54]} Rb6 {[%emt 0:02:25]} 60. Rd8 {[%emt 0:00:41]} Rb5+ {[%emt 0:00:44]} 61. Ke6 {[%emt 0:00:10]} Rb6+ {[%emt 0:00:34]} 62. Rd6 {[%emt 0:01:48]} Rb7 {[%emt 0:02:20]} 63. Rd7 {[%emt 0:00:18]} Rb8 {[%emt 0:03:29]} 64. Rd1 {[%emt 0:01:29]} Rb6+ {[%emt 0:00:08]} 65. Ke7 {[%emt 0:00:17]} Rb7+ {[%emt 0:00:14]} 66. Ke8 {[%emt 0:01:29]} Kg6 {[%emt 0:01:14]} 67. Rd6 {[%emt 0:00:17]} Rf7 {[%emt 0:00:09]} 68. Re6 {[%emt 0:00:09]} Rxf6 {[%emt 0:00:07]} 69. Rxf6+ {[%emt 0:00:02]} Kxf6 {[%emt 0:00:01]} 1/2-1/2

[Event "55th Rubinstein Memorial-A 2019"]
[Site "Polanica-Zdroj"]
[Date "2019.08.25"]
[Round "9.5"]
[White "Grabarczyk, Miroslaw"]
[Black "Shishkin, Vadim"]
[Result "1/2-1/2"]
[ECO "D30"]
[WhiteElo "2362"]
[BlackElo "2445"]
[Annotator "NA"]
[PlyCount "68"]
[EventDate "2019.08.17"]
[EventType "swiss"]
[EventCountry "POL"]
[SourceTitle "playchess.com"]
[Source "ChessBase"]
[SourceQuality "1"]
[TimeControl "40/5400+30:1800+30"]

1. d4 {[%emt 0:00:00]} d5 {[%emt 0:00:00]} 2. c4 {[%emt 0:00:00]} e6 {[%emt 0:00:07]} 3. Nf3 {[%emt 0:00:46]} c6 {[%emt 0:00:07]} 4. Qc2 {[%emt 0:02:18]} dxc4 {[%emt 0:05:01]} 5. Qxc4 {[%emt 0:00:24]} b5 {[%emt 0:00:28]} 6. Qc2 {[%emt 0:04:26]} Bb7 {[%emt 0:01:44]} 7. Nbd2 {[%emt 0:04:43]} Nd7 {[%emt 0:02:28]} 8. Nb3 {[%emt 0:03:03]} Ngf6 {[%emt 0:04:49]} 9. Bd2 {[%emt 0:05:40]} a5 {[%emt 0:01:20]} 10. e4 {[%emt 0:10:32]} b4 {[%emt 0:08:30]} 11. Nc5 {[%emt 0:05:52]} Nxc5 {[%emt 0:02:37]} 12. dxc5 {[%emt 0:00:08]} Nd7 $11 {[%emt 0:01:08]} 13. Be3 {[%emt 0:00:41]} Be7 {[%emt 0:12:48]} 14. Be2 {[%emt 0:01:19]} Ba6 {[%emt 0:03:06]} 15. Bxa6 {[%emt 0:03:35]} Rxa6 {[%emt 0:00:05]} 16. O-O {[%emt 0:01:05]} Qc7 {[%emt 0:02:32]} 17. a3 {[%emt 0:05:06]} bxa3 {[%emt 0:02:26]} 18. Rxa3 {[%emt 0:00:12]} O-O {[%emt 0:02:38]} 19. b4 {[%emt 0:10:13]} Rb8 {[%emt 0:11:40]} 20. Bd2 {[%emt 0:03:01]} Qb7 {[%emt 0:09:37]} 21. Rxa5 {[%emt 0:03:51]} Rxa5 {[%emt 0:00:08]} 22. bxa5 {[%emt 0:00:05]} Bxc5 {[%emt 0:07:54]} 23. Rc1 {[%emt 0:05:19]} Qa7 {[%emt 0:00:50]} 24. Be1 {[%emt 0:01:01]} f6 {[%emt 0:01:34]} 25. g3 {[%emt 0:08:18]} h6 {[%emt 0:03:15]} 26. Kg2 {[%emt 0:02:48]} Rb5 {[%emt 0:00:38]} 27. Bc3 {[%emt 0:02:28]} Kf7 {[%emt 0:01:19]} 28. Rd1 {[%emt 0:02:51]} Rb7 {[%emt 0:03:21]} 29. Nd4 {[%emt 0:05:27]} Bxd4 {[%emt 0:01:13]} 30. Rxd4 {[%emt 0:01:45]} Nb8 {[%emt 0:06:27]} 31. Rb4 {[%emt 0:04:35]} Rxb4 {[%emt 0:01:30]} 32. Bxb4 {[%emt 0:00:04]} Na6 {[%emt 0:00:11]} 33. Bd2 {[%emt 0:02:04]} c5 {[%emt 0:01:43]} 34. Qc4 {[%emt 0:02:28]} Qb7 {[%emt 0:01:06]} 1/2-1/2

[Event "55th Rubinstein Memorial-A 2019"]
[Site "Polanica-Zdroj"]
[Date "2019.08.25"]
[Round "9.6"]
[White "Cukrowski, Filip"]
[Black "Goslawski, Michal"]
[Result "1-0"]
[ECO "C42"]
[WhiteElo "2424"]
[BlackElo "2160"]
[Annotator "NA"]
[PlyCount "115"]
[EventDate "2019.08.17"]
[EventType "swiss"]
[EventCountry "POL"]
[SourceTitle "playchess.com"]
[Source "ChessBase"]
[SourceQuality "1"]
[TimeControl "40/5400+30:1800+30"]

1. e4 {[%emt 0:00:00]} e5 {[%emt 0:00:00]} 2. Nf3 {[%emt 0:00:00]} Nf6 {[%emt 0:00:00]} 3. Nxe5 {[%emt 0:00:00]} d6 {[%emt 0:00:00]} 4. Nf3 {[%emt 0:00:00]} Nxe4 {[%emt 0:00:00]} 5. d4 {[%emt 0:00:02]} d5 {[%emt 0:00:00]} 6. Bd3 {[%emt 0:00:04]} Nc6 {[%emt 0:00:05]} 7. O-O {[%emt 0:00:35]} Be7 {[%emt 0:03:08]} 8. c4 {[%emt 0:01:59]} Nf6 {[%emt 0:00:12]} 9. Nc3 {[%emt 0:15:45]} O-O {[%emt 0:11:46]} 10. h3 {[%emt 0:17:41]} Nb4 {[%emt 0:00:08]} 11. Be2 {[%emt 0:00:06]} dxc4 {[%emt 0:00:09]} 12. Bxc4 {[%emt 0:00:07]} Nbd5 {[%emt 0:01:56]} 13. Bg5 {[%emt 0:01:10]} c6 $11 {[%emt 0:02:40]} 14. Re1 {[%emt 0:05:11]} Be6 {[%emt 0:04:34]} 15. Qb3 {[%emt 0:08:48]} Rb8 {[%emt 0:02:23]} 16. Rac1 {[%emt 0:06:53]} Nxc3 {[%emt 0:11:35]} 17. Bxe6 {[%emt 0:01:49]} Ncd5 {[%emt 0:00:07]} 18. Bxd5 {[%emt 0:09:04]} Nxd5 {[%emt 0:04:45]} 19. Bxe7 {[%emt 0:00:27]} Nxe7 {[%emt 0:00:21]} 20. Qa3 {[%emt 0:00:08]} Nc8 {[%emt 0:06:17]} 21. Ne5 {[%emt 0:00:03]} Nd6 {[%emt 0:02:55]} 22. d5 {[%emt 0:07:16]} cxd5 {[%emt 0:00:21]} 23. Rcd1 {[%emt 0:00:20]} Nb5 {[%emt 0:03:46]} 24. Qc5 {[%emt 0:00:57]} Nc7 {[%emt 0:04:25]} 25. Qxa7 {[%emt 0:00:04]} Qd6 {[%emt 0:01:58]} 26. Qa4 {[%emt 0:02:49]} Rbe8 {[%emt 0:11:36]} 27. Nf3 {[%emt 0:00:39]} Rxe1+ {[%emt 0:05:25]} 28. Rxe1 {[%emt 0:00:04]} Ne6 {[%emt 0:00:49]} 29. Rd1 {[%emt 0:00:25]} Rd8 {[%emt 0:00:23]} 30. Nd4 {[%emt 0:04:42]} Qd7 {[%emt 0:00:57]} 31. Qxd7 {[%emt 0:03:14]} Rxd7 {[%emt 0:00:06]} 32. Kf1 {[%emt 0:00:04]} Kf8 {[%emt 0:03:25]} 33. Ke2 {[%emt 0:00:24]} Nxd4+ {[%emt 0:04:00]} 34. Rxd4 {[%emt 0:00:06]} Ke7 {[%emt 0:00:09]} 35. Kd2 {[%emt 0:04:51]} Kd6 {[%emt 0:00:24]} 36. a4 {[%emt 0:00:12]} Rc7 {[%emt 0:01:24]} 37. Rb4 {[%emt 0:00:50]} Kc6 {[%emt 0:03:33]} 38. Rb3 {[%emt 0:03:16]} Re7 {[%emt 0:00:54]} 39. Re3 {[%emt 0:01:30]} Rd7 {[%emt 0:00:40]} 40. Rc3+ {[%emt 0:00:00]} Kd6 {[%emt 0:00:00]} 41. b4 {[%emt 0:05:46]} Re7 {[%emt 0:02:00]} 42. f3 {[%emt 0:01:09]} g5 {[%emt 0:00:54]} 43. a5 {[%emt 0:01:31]} f5 {[%emt 0:03:53]} 44. b5 {[%emt 0:00:50]} h5 {[%emt 0:09:30]} 45. a6 {[%emt 0:02:07]} bxa6 {[%emt 0:00:41]} 46. bxa6 {[%emt 0:00:04]} Ra7 {[%emt 0:00:38]} 47. Ra3 {[%emt 0:00:04]} Ke5 {[%emt 0:14:11]} 48. Ke3 {[%emt 0:00:07]} d4+ {[%emt 0:00:31]} 49. Kd3 {[%emt 0:00:19]} h4 {[%emt 0:00:58]} 50. Ra2 {[%emt 0:00:58]} Kf4 {[%emt 0:00:24]} 51. Kxd4 {[%emt 0:01:20]} Rd7+ {[%emt 0:02:05]} 52. Kc5 {[%emt 0:00:04]} Kg3 {[%emt 0:00:51]} 53. a7 {[%emt 0:00:42]} Rxa7 {[%emt 0:00:26]} 54. Rxa7 {[%emt 0:00:04]} Kxg2 {[%emt 0:00:23]} 55. Rg7 {[%emt 0:00:04]} Kxf3 {[%emt 0:01:30]} 56. Rxg5 {[%emt 0:00:05]} Kf4 {[%emt 0:01:15]} 57. Rg8 {[%emt 0:00:12]} Kf3 {[%emt 0:02:19]} 58. Kd4 {[%emt 0:00:16] Ke4+ Kxe4} 1-0

[Event "55th Rubinstein Memorial-A 2019"]
[Site "Polanica-Zdroj"]
[Date "2019.08.25"]
[Round "9.7"]
[White "Luba, Lukasz"]
[Black "Kosakowski, Jakub"]
[Result "0-1"]
[ECO "A46"]
[WhiteElo "2130"]
[BlackElo "2401"]
[Annotator "NA"]
[PlyCount "62"]
[EventDate "2019.08.17"]
[EventType "swiss"]
[EventCountry "POL"]
[SourceTitle "playchess.com"]
[Source "ChessBase"]
[SourceQuality "1"]
[TimeControl "40/5400+30:1800+30"]

1. d4 {[%emt 0:00:00]} Nf6 {[%emt 0:02:43]} 2. Nf3 {[%emt 0:00:26]} d6 {[%emt 0:00:11]} 3. Bf4 {[%emt 0:04:15]} Nbd7 {[%emt 0:03:07]} 4. e3 {[%emt 0:00:12]} g6 {[%emt 0:02:13]} 5. Bc4 {[%emt 0:04:26]} e6 {[%emt 0:00:38]} 6. Nbd2 {[%emt 0:03:19]} Bg7 {[%emt 0:00:13]} 7. Qe2 {[%emt 0:03:24]} O-O {[%emt 0:00:22]} 8. O-O-O {[%emt 0:04:51]} a6 {[%emt 0:00:35]} 9. Rhg1 {[%emt 0:05:53]} b5 {[%emt 0:01:02]} 10. Bb3 {[%emt 0:00:16]} Nb6 {[%emt 0:14:43]} 11. c3 {[%emt 0:04:58]} a5 {[%emt 0:00:48]} 12. Qxb5 $19 {[%emt 0:04:13]} (12. Bg5 $17) 12... a4 {[%emt 0:04:24]} 13. Bc2 {[%emt 0:00:14]} Nfd5 {[%emt 0:03:41]} 14. Qf1 {[%emt 0:08:32]} a3 {[%emt 0:01:25]} 15. Bb3 {[%emt 0:01:07]} axb2+ {[%emt 0:00:30]} 16. Kc2 {[%emt 0:00:06]} Ba6 {[%emt 0:01:20]} 17. Qe1 {[%emt 0:05:02]} c5 {[%emt 0:00:42]} 18. Bxd6 {[%emt 0:03:19]} Qxd6 {[%emt 0:03:22]} 19. Ne4 {[%emt 0:03:28]} Qc7 {[%emt 0:00:18]} 20. Nxc5 {[%emt 0:00:47]} Nc4 {[%emt 0:10:04]} 21. h4 {[%emt 0:06:07]} b1=Q+ {[%emt 0:01:32]} 22. Kxb1 {[%emt 0:00:53]} Nxc3+ {[%emt 0:00:52]} 23. Qxc3 {[%emt 0:02:52]} Qxc5 {[%emt 0:00:05]} 24. Rc1 {[%emt 0:01:42]} Qb6 {[%emt 0:00:18]} 25. Ka1 {[%emt 0:01:13]} Na5 {[%emt 0:00:09]} 26. Rb1 {[%emt 0:00:40]} Nxb3+ {[%emt 0:00:22]} 27. Rxb3 {[%emt 0:00:27]} Qa7 {[%emt 0:00:45]} 28. Ra3 {[%emt 0:00:03]} Rfc8 {[%emt 0:00:11]} 29. Qa5 {[%emt 0:00:34]} Bf8 {[%emt 0:00:58]} 30. Ra4 {[%emt 0:00:33]} Qb7 {[%emt 0:00:16]} 31. Qe5 {[%emt 0:03:09]} Rab8 {[%emt 0:00:12]} 0-1

[Event "55th Rubinstein Memorial-A 2019"]
[Site "Polanica-Zdroj"]
[Date "2019.08.25"]
[Round "9.8"]
[White "Jaroch, Karol"]
[Black "Kucza, Karol"]
[Result "1/2-1/2"]
[ECO "C55"]
[WhiteElo "2231"]
[BlackElo "2296"]
[Annotator "NA"]
[PlyCount "82"]
[EventDate "2019.08.17"]
[EventType "swiss"]
[EventCountry "POL"]
[SourceTitle "playchess.com"]
[Source "ChessBase"]
[SourceQuality "1"]
[TimeControl "40/5400+30:1800+30"]

1. e4 {[%emt 0:00:00]} e5 {[%emt 0:00:00]} 2. Nf3 {[%emt 0:00:00]} Nc6 {[%emt 0:00:00]} 3. Bc4 {[%emt 0:00:00]} Nf6 {[%emt 0:00:00]} 4. d3 {[%emt 0:00:02]} Be7 {[%emt 0:00:10]} 5. O-O {[%emt 0:02:46]} O-O {[%emt 0:00:06]} 6. Nc3 {[%emt 0:01:59]} d6 {[%emt 0:00:20]} 7. h3 {[%emt 0:01:42]} Na5 {[%emt 0:01:25]} 8. Bb5 {[%emt 0:01:53]} a6 {[%emt 0:00:27]} 9. Ba4 {[%emt 0:00:03]} b5 {[%emt 0:00:06]} 10. Bb3 {[%emt 0:00:04]} Nxb3 {[%emt 0:00:05]} 11. axb3 {[%emt 0:00:05]} b4 {[%emt 0:02:32]} 12. Ne2 {[%emt 0:01:15]} c5 {[%emt 0:00:08]} 13. Ng3 {[%emt 0:01:57]} h6 {[%emt 0:03:51]} 14. c4 {[%emt 0:02:35]} Ne8 {[%emt 0:13:20]} 15. Be3 {[%emt 0:06:58]} Nc7 {[%emt 0:00:33]} 16. Nd2 {[%emt 0:05:12]} Bg5 {[%emt 0:11:07]} 17. Nf5 {[%emt 0:10:58]} Kh7 {[%emt 0:05:08]} 18. Bxg5 {[%emt 0:19:19]} hxg5 {[%emt 0:00:12]} 19. Qh5+ {[%emt 0:00:10]} Kg8 {[%emt 0:00:08]} 20. Nf3 {[%emt 0:00:08]} Ne6 {[%emt 0:08:16]} 21. g3 {[%emt 0:14:52]} Ra7 {[%emt 0:00:12]} 22. h4 {[%emt 0:02:57]} g6 {[%emt 0:09:22]} 23. Qh6 {[%emt 0:00:14]} gxf5 {[%emt 0:00:09]} 24. exf5 {[%emt 0:01:52]} f6 {[%emt 0:00:07]} 25. fxe6 {[%emt 0:00:23]} Qe8 {[%emt 0:01:07]} 26. hxg5 {[%emt 0:04:39]} Rh7 {[%emt 0:01:20]} 27. e7 {[%emt 0:00:07]} Qxe7 {[%emt 0:19:38]} 28. gxf6 {[%emt 0:01:46]} Rxf6 {[%emt 0:00:05]} 29. Qg5+ {[%emt 0:00:08]} Rg7 {[%emt 0:00:03]} 30. Qe3 {[%emt 0:00:20]} Bb7 {[%emt 0:00:06]} 31. Nd2 {[%emt 0:02:31]} Rf4 {[%emt 0:01:35]} 32. f3 {[%emt 0:02:48]} Qh4 {[%emt 0:02:06]} 33. Kf2 {[%emt 0:00:03]} Qh2+ {[%emt 0:02:54]} 34. Ke1 {[%emt 0:00:07]} Rxg3 {[%emt 0:00:10]} 35. Rd1 {[%emt 0:04:41]} Rg2 {[%emt 0:12:04]} 36. Rf2 {[%emt 0:00:06]} Rh4 {[%emt 0:01:50]} 37. Ke2 {[%emt 0:00:57]} Rxf2+ {[%emt 0:00:19]} 38. Qxf2 {[%emt 0:00:03]} Qxf2+ {[%emt 0:00:14]} 39. Kxf2 {[%emt 0:00:02]} Rh2+ {[%emt 0:00:21]} 40. Ke3 {[%emt 0:00:00]} Kf7 {[%emt 0:00:00]} 41. Rg1 {[%emt 0:01:13]} Bc6 {[%emt 0:05:18] Ke4} 1/2-1/2

[Event "55th Rubinstein Memorial-A 2019"]
[Site "Polanica-Zdroj"]
[Date "2019.08.25"]
[Round "9.9"]
[White "Lukasiewicz, Krzysztof"]
[Black "Oleksy, Krzysztof"]
[Result "1/2-1/2"]
[ECO "A45"]
[WhiteElo "2185"]
[BlackElo "1840"]
[Annotator "NA"]
[PlyCount "98"]
[EventDate "2019.08.17"]
[EventType "swiss"]
[EventCountry "POL"]
[SourceTitle "playchess.com"]
[Source "ChessBase"]
[SourceQuality "1"]
[TimeControl "40/5400+30:1800+30"]

1. d4 {[%emt 0:00:00]} Nf6 {[%emt 0:00:00]} 2. Bf4 {[%emt 0:00:00]} g6 {[%emt 0:00:31]} 3. Nc3 {[%emt 0:00:00]} d5 {[%emt 0:01:25]} 4. e3 {[%emt 0:00:00]} Bg7 {[%emt 0:00:11]} 5. h4 {[%emt 0:00:01]} h5 {[%emt 0:00:42]} 6. Be2 {[%emt 0:01:01]} c5 {[%emt 0:08:26]} 7. Nb5 {[%emt 0:05:50]} Na6 {[%emt 0:02:50]} 8. c3 {[%emt 0:01:06]} O-O {[%emt 0:01:13]} 9. Nf3 {[%emt 0:01:46]} Bg4 {[%emt 0:09:45]} 10. Ne5 {[%emt 0:04:45]} Bxe2 {[%emt 0:01:04]} 11. Qxe2 {[%emt 0:00:05]} Nb8 {[%emt 0:12:14]} 12. dxc5 {[%emt 0:01:26]} Nc6 {[%emt 0:12:53]} 13. Nxc6 {[%emt 0:00:27]} bxc6 {[%emt 0:00:25]} 14. Nd4 {[%emt 0:00:03]} Qd7 {[%emt 0:01:00]} 15. Be5 {[%emt 0:12:50]} Ne4 {[%emt 0:02:56]} 16. Bxg7 {[%emt 0:00:04]} Kxg7 {[%emt 0:00:07]} 17. b4 {[%emt 0:00:43]} e5 {[%emt 0:08:09]} 18. Nf3 {[%emt 0:00:11]} f6 {[%emt 0:01:36]} 19. Qc2 {[%emt 0:02:14]} a5 {[%emt 0:02:40]} 20. a3 {[%emt 0:02:12]} Qg4 {[%emt 0:01:57]} 21. O-O {[%emt 0:01:28]} Rae8 {[%emt 0:05:50]} 22. Rac1 {[%emt 0:09:41]} g5 {[%emt 0:02:35]} 23. c4 {[%emt 0:10:24]} gxh4 {[%emt 0:05:35]} 24. Nh2 {[%emt 0:02:24]} Qg6 {[%emt 0:06:47]} 25. cxd5 {[%emt 0:05:58]} cxd5 {[%emt 0:01:13]} 26. Qd3 {[%emt 0:18:38]} h3 {[%emt 0:02:17]} 27. g3 {[%emt 0:00:01]} h4 {[%emt 0:01:14]} 28. g4 {[%emt 0:00:03]} f5 {[%emt 0:03:06]} 29. f3 {[%emt 0:07:39]} Ng3 {[%emt 0:01:57]} 30. Rf2 {[%emt 0:01:49]} fxg4 {[%emt 0:02:57]} 31. Qxg6+ {[%emt 0:00:04]} Kxg6 {[%emt 0:00:03]} 32. Nxg4 {[%emt 0:00:04]} Rxf3 {[%emt 0:01:43]} 33. Rxf3 {[%emt 0:00:07]} Ne2+ {[%emt 0:00:07]} 34. Kh2 {[%emt 0:00:02]} Nxc1 {[%emt 0:00:10]} 35. Kxh3 {[%emt 0:02:44]} axb4 {[%emt 0:00:45]} 36. axb4 {[%emt 0:00:02]} Nd3 {[%emt 0:00:32]} 37. Rf6+ {[%emt 0:01:04]} Kg5 {[%emt 0:00:54]} 38. Rb6 {[%emt 0:00:02]} d4 {[%emt 0:00:28]} 39. c6 {[%emt 0:07:39]} Rc8 {[%emt 0:00:26]} 40. Rb5 {[%emt 0:00:00]} Rxc6 {[%emt 0:00:00]} 41. Nxe5 {[%emt 0:09:10]} Nxe5 {[%emt 0:04:30]} 42. Rxe5+ {[%emt 0:00:08]} Kf6 {[%emt 0:01:34]} 43. exd4 {[%emt 0:00:04]} Rc4 {[%emt 0:00:50]} 44. Re4 {[%emt 0:00:05]} Rxb4 {[%emt 0:00:55]} 45. Rxh4 {[%emt 0:00:04]} Ke7 {[%emt 0:01:17]} 46. Kg3 {[%emt 0:00:19]} Kd6 {[%emt 0:00:19]} 47. Kf3 {[%emt 0:00:02]} Kd5 {[%emt 0:00:22]} 48. Ke3 {[%emt 0:00:05]} Rb3+ {[%emt 0:00:16]} 49. Kd2 {[%emt 0:00:03]} Rg3 {[%emt 0:00:50]} 1/2-1/2

[Event "55th Rubinstein Memorial-A 2019"]
[Site "Polanica-Zdroj"]
[Date "2019.08.25"]
[Round "9.10"]
[White "Lapaj, Mateusz"]
[Black "Malicka, Maria"]
[Result "1/2-1/2"]
[ECO "A45"]
[WhiteElo "2233"]
[BlackElo "2062"]
[Annotator "NA"]
[PlyCount "66"]
[EventDate "2019.08.17"]
[EventType "swiss"]
[EventCountry "POL"]
[SourceTitle "playchess.com"]
[Source "ChessBase"]
[SourceQuality "1"]
[TimeControl "40/5400+30:1800+30"]

1. d4 {[%emt 0:01:40]} Nf6 {[%emt 0:00:00]} 2. Bg5 {[%emt 0:01:20]} Ne4 {[%emt 0:00:00]} 3. Bf4 {[%emt 0:00:01]} c5 {[%emt 0:00:00]} 4. f3 {[%emt 0:00:06]} Qa5+ {[%emt 0:00:37]} 5. c3 {[%emt 0:00:06]} Nf6 {[%emt 0:00:03]} 6. d5 {[%emt 0:00:10]} e6 {[%emt 0:00:42]} 7. e4 {[%emt 0:00:08]} exd5 {[%emt 0:00:06]} 8. exd5 {[%emt 0:00:06]} d6 {[%emt 0:00:06]} 9. Qd2 {[%emt 0:20:33]} Be7 {[%emt 0:07:12]} 10. c4 {[%emt 0:00:46]} Qxd2+ {[%emt 0:00:12]} 11. Kxd2 {[%emt 0:01:47]} O-O {[%emt 0:09:14]} 12. Nc3 {[%emt 0:00:06]} a6 {[%emt 0:01:44]} 13. a4 {[%emt 0:05:16]} b6 {[%emt 0:01:34]} 14. Bd3 {[%emt 0:00:23]} Nh5 {[%emt 0:04:35]} 15. Be3 {[%emt 0:01:25]} f5 {[%emt 0:00:24]} 16. Nge2 {[%emt 0:01:21]} Nd7 {[%emt 0:07:19]} 17. Nf4 {[%emt 0:17:22]} Nxf4 {[%emt 0:00:44]} 18. Bxf4 {[%emt 0:02:33]} Ne5 {[%emt 0:10:41]} 19. Rhb1 {[%emt 0:09:50]} Bf6 {[%emt 0:20:00]} 20. b4 {[%emt 0:03:43]} g5 {[%emt 0:00:13]} 21. Bxe5 {[%emt 0:00:40]} Bxe5 {[%emt 0:00:04]} 22. g3 {[%emt 0:02:39]} Rf7 {[%emt 0:04:38]} 23. a5 {[%emt 0:01:08]} cxb4 {[%emt 0:00:15]} 24. Rxb4 {[%emt 0:00:07]} bxa5 {[%emt 0:00:25]} 25. Rxa5 {[%emt 0:00:07]} Bd4 {[%emt 0:03:59]} 26. Rb1 {[%emt 0:08:59]} Kg7 {[%emt 0:02:34]} 27. Na4 {[%emt 0:01:13]} Raa7 {[%emt 0:09:40]} 28. Rb8 {[%emt 0:05:43]} Rac7 {[%emt 0:03:31]} 29. c5 {[%emt 0:08:50]} dxc5 {[%emt 0:02:01]} 30. Nb6 {[%emt 0:02:09]} Rb7 {[%emt 0:04:17]} 31. Rxb7 {[%emt 0:00:25]} Bxb7 {[%emt 0:00:14]} 32. Bxa6 {[%emt 0:00:13]} Rf6 {[%emt 0:01:15]} 33. Bxb7 {[%emt 0:00:33]} Rxb6 {[%emt 0:00:01]} 1/2-1/2